Department Family,Entity,Date,Expenses Type,Expense Area,Supplier,Transaction Number,  Total  ,
Department of Health,The Christie NHS Foundation Trust,15/10/2020,Project Management Services, Capital,AECOM LIMITED,0000651753,"42,812.29",
Department of Health,The Christie NHS Foundation Trust,29/10/2020, Drugs, Drugs,ALCURA UK LIMITED,0000653661,"54,573.80",
Department of Health,The Christie NHS Foundation Trust,01/10/2020, Drugs, Drugs,ALCURA UK LIMITED,0000651959,"67,620.06",
Department of Health,The Christie NHS Foundation Trust,08/10/2020,Drugs,Christie Medical Physics,ALLIANCE MEDICAL RADIOPHARMACY LIMITED,0000651034,"27,239.70",
Department of Health,The Christie NHS Foundation Trust,22/10/2020,Paterson Project: Professional Services, Capital,AVISON YOUNG (GVA),0000652315,"31,410.00",
Department of Health,The Christie NHS Foundation Trust,01/10/2020, Drugs, Drugs,BAXTER HEALTHCARE LTD,0000650389,"81,697.12",
Department of Health,The Christie NHS Foundation Trust,01/10/2020, Drugs, Drugs,BAXTER HEALTHCARE LTD,0000650398,"65,388.49",
Department of Health,The Christie NHS Foundation Trust,01/10/2020, Drugs, Drugs,BAXTER HEALTHCARE LTD,0000650399,"93,605.05",
Department of Health,The Christie NHS Foundation Trust,01/10/2020, Drugs, Drugs,BAXTER HEALTHCARE LTD,0000650531,"109,913.71",
Department of Health,The Christie NHS Foundation Trust,29/10/2020, Drugs, Drugs,BAXTER HEALTHCARE LTD,0000651590,"149,453.81",
Department of Health,The Christie NHS Foundation Trust,29/10/2020, Drugs, Drugs,BAXTER HEALTHCARE LTD,0000651591,"64,501.25",
Department of Health,The Christie NHS Foundation Trust,29/10/2020, Drugs, Drugs,BAXTER HEALTHCARE LTD,0000651835,"26,249.04",
Department of Health,The Christie NHS Foundation Trust,29/10/2020, Drugs, Drugs,BAXTER HEALTHCARE LTD,0000653431,"87,345.13",
Department of Health,The Christie NHS Foundation Trust,01/10/2020, Drugs, Drugs,BAXTER HEALTHCARE LTD,0000650784,"87,342.25",
Department of Health,The Christie NHS Foundation Trust,08/10/2020, Drugs, Drugs,BAXTER HEALTHCARE LTD,0000650786,"99,983.44",
Department of Health,The Christie NHS Foundation Trust,29/10/2020, Drugs, Drugs,BAXTER HEALTHCARE LTD,0000651882,"77,143.90",
Department of Health,The Christie NHS Foundation Trust,29/10/2020, Drugs, Drugs,BAXTER HEALTHCARE LTD,0000651886,"67,631.62",
Department of Health,The Christie NHS Foundation Trust,29/10/2020, Drugs, Drugs,BAXTER HEALTHCARE LTD,0000651889,"120,782.81",
Department of Health,The Christie NHS Foundation Trust,29/10/2020, Drugs, Drugs,BAXTER HEALTHCARE LTD,0000651898,"164,491.72",
Department of Health,The Christie NHS Foundation Trust,29/10/2020, Drugs, Drugs,BAXTER HEALTHCARE LTD,0000651902,"104,674.16",
Department of Health,The Christie NHS Foundation Trust,29/10/2020, Drugs, Drugs,BAXTER HEALTHCARE LTD,0000651907,"102,426.26",
Department of Health,The Christie NHS Foundation Trust,29/10/2020, Drugs, Drugs,BAXTER HEALTHCARE LTD,0000651972,"199,144.43",
Department of Health,The Christie NHS Foundation Trust,29/10/2020, Drugs, Drugs,BAXTER HEALTHCARE LTD,0000652492,"110,479.85",
Department of Health,The Christie NHS Foundation Trust,29/10/2020, Drugs, Drugs,BAXTER HEALTHCARE LTD,0000652493,"90,513.31",
Department of Health,The Christie NHS Foundation Trust,29/10/2020, Drugs, Drugs,BAXTER HEALTHCARE LTD,0000652496,"87,806.38",
Department of Health,The Christie NHS Foundation Trust,29/10/2020, Drugs, Drugs,BAXTER HEALTHCARE LTD,0000652497,"86,611.03",
Department of Health,The Christie NHS Foundation Trust,29/10/2020, Drugs, Drugs,BAXTER HEALTHCARE LTD,0000652562,"153,918.94",
Department of Health,The Christie NHS Foundation Trust,29/10/2020, Drugs, Drugs,BAXTER HEALTHCARE LTD,0000652971,"118,075.48",
Department of Health,The Christie NHS Foundation Trust,08/10/2020, Drugs, Drugs,BAXTER HEALTHCARE LTD,0000650788,"87,686.27",
Department of Health,The Christie NHS Foundation Trust,08/10/2020, Drugs, Drugs,BAXTER HEALTHCARE LTD,0000650858,"94,919.33",
Department of Health,The Christie NHS Foundation Trust,08/10/2020,Subscription Fees, Network Services,BRAINLAB LTD,0000651614,"28,051.86",
Department of Health,The Christie NHS Foundation Trust,08/10/2020,Medical Equipment,Clin Support & Spec Surgery,CANON MEDICAL SYSTEMS LIMITED,0000652142,"61,141.10",
Department of Health,The Christie NHS Foundation Trust,01/10/2020,Provision of Integra Bureau Service, Finance & Business Developm,CAPITA SECURE INFORMATION SOLUTIONS LTD,0000650768,"56,863.00",
Department of Health,The Christie NHS Foundation Trust,22/10/2020,Software Services,Digital Services,CIGNITI TECHNOLOGIES UK LTD,0000652558,"21,676.00",
Department of Health,The Christie NHS Foundation Trust,01/10/2020,Software Services,Manchester Cancer,COMPUTACENTER(UK) LTD,0000651228,"76,400.00",
Department of Health,The Christie NHS Foundation Trust,22/10/2020,Facilities Management Services, Christie Pathology Partner,CPP FACILITIES LLP,0000652471,"189,651.69",
Department of Health,The Christie NHS Foundation Trust,22/10/2020,Facilities Management Services, Christie Pathology Partner,CPP FACILITIES LLP,0000653155,"180,459.89",
Department of Health,The Christie NHS Foundation Trust,01/10/2020, Drugs, Drugs,DD BAXTER HEALTHCARE LTD,0000652972,"351,380.40",
Department of Health,The Christie NHS Foundation Trust,07/10/2020,Rates, Estates & Facilities,DD M/CR CITY COUNCIL (RATES),0000653299,"70,656.00",
Department of Health,The Christie NHS Foundation Trust,23/10/2020,Blood Products, Network Services,DD NHS BLOOD AND TRANSPLANT,0000653762,"188,268.30",
Department of Health,The Christie NHS Foundation Trust,15/10/2020,Blood Products, Network Services,DD NHS BLOOD AND TRANSPLANT,0000650897,"188,268.30",
Department of Health,The Christie NHS Foundation Trust,15/10/2020,NHS Litigations (NHSLA),Quality & Standards,DD NHS LITIGATION AUTHORITY,0000653226,"152,873.05",
Department of Health,The Christie NHS Foundation Trust,29/10/2020, Drugs, Drugs,EAST CHESHIRE NHS TRUST,0000650570,"85,332.91",
Department of Health,The Christie NHS Foundation Trust,15/10/2020,Electricity Invoice - September 2020, Network Services,EDF ENERGY,0000652833,"54,885.28",
Department of Health,The Christie NHS Foundation Trust,15/10/2020,Medical Equipment, Capital,"FUJIFILM SONOSITE, LTD.",0000651664,"46,620.00",
Department of Health,The Christie NHS Foundation Trust,15/10/2020,Medical Equipment,Clin Support & Spec Surgery,GE MEDICAL SYSTEMS LIMITED,0000640813,"33,250.00",
Department of Health,The Christie NHS Foundation Trust,15/10/2020,Computer Equipment,Clin Support & Spec Surgery,GE MEDICAL SYSTEMS LIMITED,0000646410,"33,250.00",
Department of Health,The Christie NHS Foundation Trust,08/10/2020,Insurance Renewal Fee, Finance & Business Developm,GRIFFITHS & ARMOUR,0000652418,"256,480.00",
Department of Health,The Christie NHS Foundation Trust,08/10/2020, Drugs, Drugs,HEALTHCARE AT HOME LTD,0000651978,"29,984.00",
Department of Health,The Christie NHS Foundation Trust,15/10/2020, Drugs, Drugs,HEALTHCARE AT HOME LTD,0000652524,"26,385.00",
Department of Health,The Christie NHS Foundation Trust,08/10/2020,Refurbishment Costs for Medical Room, Capital,HIGH LEVEL MAINTENANCE SOLUTIONS LTD,0000652002,"69,984.00",
Department of Health,The Christie NHS Foundation Trust,08/10/2020,Refurbishment Costs for Medical Room, Capital,HIGH LEVEL MAINTENANCE SOLUTIONS LTD,0000652231,"26,808.00",
Department of Health,The Christie NHS Foundation Trust,08/10/2020,COVID-19 Works in Trust,Digital Services,HP INC UK LIMITED,0000652090,"57,030.24",
Department of Health,The Christie NHS Foundation Trust,15/10/2020,Project Management Contract, Capital,INTEGRATED HEALTH PROJECTS,0000652946,"199,898.48",
Department of Health,The Christie NHS Foundation Trust,22/10/2020,Redevelopment Project Costs, Capital,INTEGRATED HEALTH PROJECTS,0000653300,"2,059,801.18",
Department of Health,The Christie NHS Foundation Trust,01/10/2020,Redevelopment Project Costs, Capital,INTEGRATED HEALTH PROJECTS,0000651895,"1,146,722.40",
Department of Health,The Christie NHS Foundation Trust,01/10/2020,Theatre Development, Capital,INTEGRATED HEALTH PROJECTS,0000651833,"332,918.42",
Department of Health,The Christie NHS Foundation Trust,22/10/2020,Online Medical System,Digital Services,IQ HEALTH TECH LTD,0000652309,"32,500.00",
Department of Health,The Christie NHS Foundation Trust,08/10/2020, Drugs, Drugs,LLOYDSPHARMACY CLINICAL HOMECARE,0000652555,"45,949.24",
Department of Health,The Christie NHS Foundation Trust,22/10/2020,Project Management Services, Capital,MACE LTD,0000653234,"39,110.40",
Department of Health,The Christie NHS Foundation Trust,22/10/2020,Project Management Services, Capital,MACE LTD,0000653086,"39,110.40",
Department of Health,The Christie NHS Foundation Trust,22/10/2020,Project Management Services, Capital,MACE LTD,0000653242,"39,110.40",
Department of Health,The Christie NHS Foundation Trust,01/10/2020,Rates, Estates & Facilities,MANCHESTER CITY COUNCIL,0000651380,"55,395.00",
Department of Health,The Christie NHS Foundation Trust,29/10/2020,Q2 Paediatric Anaesthetic Service, Network Services,MANCHESTER UNIVERSITY NHS FT,0000651372,"167,463.00",
Department of Health,The Christie NHS Foundation Trust,01/10/2020,Support Services,COVID-19,MAX 20 PROJECT SOLUTIONS LTD,0000651297,"40,000.00",
Department of Health,The Christie NHS Foundation Trust,15/10/2020,Support Services,COVID-19,MAX 20 PROJECT SOLUTIONS LTD,0000652631,"40,000.00",
Department of Health,The Christie NHS Foundation Trust,29/10/2020, Drugs, Drugs,MID CHESHIRE HOSPITALS NHS FT,0000652394,"498,369.93",
Department of Health,The Christie NHS Foundation Trust,29/10/2020,Radiology Fees Q3 2020, Network Services,MID CHESHIRE HOSPITALS NHS FT,0000652388,"31,750.25",
Department of Health,The Christie NHS Foundation Trust,22/10/2020,Provision Charge Q2 2020, Network Services,MID CHESHIRE HOSPITALS NHS FT,0000652396,"146,602.57",
Department of Health,The Christie NHS Foundation Trust,22/10/2020,Blood Products, Network Services,NHS BLOOD AND TRANSPLANT,0000649334,"30,125.87",
Department of Health,The Christie NHS Foundation Trust,22/10/2020,All Wards & Departments,The Christie NHS FT Balance,NHS SUPPLY CHAIN,0000652484,"62,743.29",
Department of Health,The Christie NHS Foundation Trust,29/10/2020,All Wards & Departments,The Christie NHS FT Balance,NHS SUPPLY CHAIN,0000654219,"46,411.33",
Department of Health,The Christie NHS Foundation Trust,29/10/2020,All Wards & Departments,The Christie NHS FT Balance,NHS SUPPLY CHAIN,0000654221,"54,884.72",
Department of Health,The Christie NHS Foundation Trust,15/10/2020,All Wards & Departments,The Christie NHS FT Balance,NHS SUPPLY CHAIN,0000652485,"47,025.88",
Department of Health,The Christie NHS Foundation Trust,15/10/2020,All Wards & Departments,The Christie NHS FT Balance,NHS SUPPLY CHAIN,0000652486,"57,723.70",
Department of Health,The Christie NHS Foundation Trust,15/10/2020,All Wards & Departments,The Christie NHS FT Balance,NHS SUPPLY CHAIN,0000652488,"39,194.07",
Department of Health,The Christie NHS Foundation Trust,29/10/2020, Drugs, Drugs,NOVARTIS PHARMACEUTICALS UK LTD,0000651998,"257,184.00",
Department of Health,The Christie NHS Foundation Trust,29/10/2020,Medical Equipment, Capital,OLYMPUS KEYMED,0000652240,"1,252,009.95",
Department of Health,The Christie NHS Foundation Trust,20/10/2020,Purchase of Non Medical Equipment, Capital,SIGMAPHI,0000652686,"70,000.00",
Department of Health,The Christie NHS Foundation Trust,01/10/2020,Hotel,COVID-19,STAYCITY MANCHESTER LTD,0000651358,"34,928.13",
Department of Health,The Christie NHS Foundation Trust,22/10/2020,Hotel, Network Services,STAYCITY MANCHESTER LTD,0000652685,"119,241.06",
Department of Health,The Christie NHS Foundation Trust,29/10/2020, Drugs, Drugs,THE CHRISTIE CLINIC (HCA),0000645412,"27,000.00",
Department of Health,The Christie NHS Foundation Trust,23/10/2020,Cark Park Charges, Estates & Facilities,THE CHRISTIE NHS FOUNDATION TRUST,0000649512,"26,250.00",
Department of Health,The Christie NHS Foundation Trust,22/10/2020,Pathology Testing Services, Christie Pathology Partner,THE CHRISTIE PATHOLOGY PARTNERSHIP LLP,0000651826,"399,067.90",
Department of Health,The Christie NHS Foundation Trust,22/10/2020,Pathology Testing Services, Christie Pathology Partner,THE CHRISTIE PATHOLOGY PARTNERSHIP LLP,0000653152,"379,726.40",
Department of Health,The Christie NHS Foundation Trust,22/10/2020, Drugs, Drugs,THE CHRISTIE PHARMACY LIMITED,0000653318,"141,496.15",
Department of Health,The Christie NHS Foundation Trust,08/10/2020, Drugs, Drugs,THE CHRISTIE PHARMACY LIMITED,0000652162,"3,471,000.00",
Department of Health,The Christie NHS Foundation Trust,22/10/2020, Drugs, Drugs,THE CHRISTIE PHARMACY LIMITED,0000653317,"1,549,092.68",
Department of Health,The Christie NHS Foundation Trust,15/10/2020,Consultancy Services ,Strategy,THE HCI GROUP LTD,0000651683,"38,065.00",
Department of Health,The Christie NHS Foundation Trust,15/10/2020,Drug Trial,Research & Innovation,UNIVERSITY OF MANCHESTER,0000651890,"26,224.79",
Department of Health,The Christie NHS Foundation Trust,22/10/2020,Service Contract, Network Services,VARIAN MEDICAL SYSTEMS UK LTD,0000652341,"144,500.00",
Department of Health,The Christie NHS Foundation Trust,29/10/2020,Service Contract, Network Services,VARIAN MEDICAL SYSTEMS UK LTD,0000652353,"223,500.00",
Department of Health,The Christie NHS Foundation Trust,15/10/2020,Medical Room Infrastructure, Capital,VARIAN MEDICAL SYSTEMS UK LTD,0000650894,"50,000.00",
Department of Health,The Christie NHS Foundation Trust,29/10/2020,Service Contract, Network Services,VARIAN MEDICAL SYSTEMS UK LTD,0000652867,"214,772.90",
Department of Health,The Christie NHS Foundation Trust,15/10/2020,Construction Works, Capital,VINCI CONSTRUCTION UK LIMITED,0000652691,"926,377.25",
Department of Health,The Christie NHS Foundation Trust,22/10/2020,Supply of Electricity & Gas, Estates & Facilities,VITAL ENERGI SOLUTIONS LTD,0000652764,"62,030.17",
Department of Health,The Christie NHS Foundation Trust,01/10/2020,Supply of Electricity & Gas, Estates & Facilities,VITAL ENERGI SOLUTIONS LTD,0000651255,"95,153.62",
